bitfinex-derivatives/quotes_BTCF0:USTF0_20250922
["timestamp","ask_amount","ask_price","bid_price","bid_amount"]
[1758511242609,0.0395,114470.0,114460.0,1.36397498]
[1758511242798,0.0395,114470.0,114460.0,0.55953498]
[1758511242998,0.0395,114470.0,114460.0,1.36397498]
[1758511243201,0.04838979,114470.0,114460.0,1.36397498]
[1758511243604,0.11681756,114470.0,114460.0,1.36397498]
[1758511245511,0.11681756,114470.0,114460.0,0.55953498]
[1758511245710,0.11681756,114470.0,114460.0,1.36389498]
[1758511246311,0.09371756,114470.0,114460.0,1.58147092]
[1758511247716,0.09371756,114470.0,114460.0,1.36389498]
[1758511248415,0.11681756,114470.0,114460.0,1.36385498]
[1758511249209,0.11681756,114470.0,114460.0,0.55953498]
[1758511249409,0.11681756,114470.0,114460.0,1.36381498]
[1758511249616,0.11681756,114470.0,114460.0,0.55953498]
[1758511249925,0.11681756,114470.0,114460.0,1.36381498]
[1758511250218,0.09371756,114470.0,114460.0,1.36381498]
[1758511251115,0.09371756,114470.0,114460.0,0.9286631]
[1758511251320,0.09371756,114470.0,114460.0,1.36381498]
[1758511251505,0.09371756,114470.0,114460.0,0.55953498]
[1758511251708,0.09371756,114470.0,114460.0,1.36381498]
[1758511252120,0.09371756,114470.0,114460.0,0.55953498]
[1758511252417,0.09371756,114470.0,114460.0,1.36377498]
[1758511253118,0.09371756,114470.0,114460.0,0.55953498]
[1758511253416,0.11681756,114470.0,114460.0,1.36377498]
[1758511255412,0.11681756,114470.0,114460.0,0.55953498]
[1758511255619,0.11681756,114470.0,114460.0,1.36369498]
[1758511258114,0.11681756,114470.0,114460.0,1.36361498]
[1758511258316,0.09371756,114470.0,114460.0,1.36361498]
[1758511258517,0.11549756,114470.0,114460.0,1.36361498]
[1758511260522,0.11549756,114470.0,114460.0,0.55953498]
[1758511260714,0.11549756,114470.0,114460.0,1.36361498]
[1758511262426,0.11549756,114470.0,114460.0,0.55953498]
[1758511263520,0.12944756,114470.0,114460.0,1.13199904]
[1758511263724,0.3470235,114470.0,114460.0,1.34957498]
[1758511263923,0.11549756,114470.0,114460.0,1.36290498]
[1758511265027,0.11549756,114470.0,114460.0,0.9277531]
[1758511265234,0.11549756,114470.0,114460.0,1.36290498]
[1758511267436,0.12944756,114470.0,114460.0,0.55894498]
[1758511267728,0.12944756,114470.0,114460.0,0.9276731]
[1758511268028,0.12944756,114470.0,114460.0,1.36282498]
[1758511268231,0.12944756,114470.0,114460.0,0.55894498]
[1758511268422,0.12944756,114470.0,114460.0,1.36282498]
[1758511269220,0.12944756,114470.0,114460.0,0.55894498]
[1758511269426,0.12944756,114470.0,114460.0,1.36282498]
[1758511270331,0.21674306,114470.0,114460.0,1.36282498]
[1758511270828,0.434319,114470.0,114460.0,1.13187904]
[1758511273433,0.434319,114470.0,114460.0,0.54561498]
[1758511273628,0.45653677,114470.0,114460.0,1.34941498]
[1758511274236,0.434319,114470.0,114460.0,1.13183904]
[1758511275839,0.434319,114470.0,114460.0,0.32803904]
[1758511276136,0.434319,114470.0,114460.0,0.9142231]
[1758511276432,0.45653414,114470.0,114460.0,1.13179904]
[1758511276928,0.60153414,114470.0,114460.0,1.34937498]
[1758511277327,0.60153414,114470.0,114460.0,1.13179904]
[1758511277834,0.60153414,114470.0,114460.0,1.04445594]
[1758511278135,0.579319,114470.0,114460.0,1.04445594]
[1758511283036,0.579319,114470.0,114460.0,1.13175924]
[1758511285037,0.579319,114470.0,114460.0,1.04445594]
[1758511285435,0.122211,114450.0,114440.0,0.43799349]
[1758511285739,0.02178,114450.0,114440.0,1.45912943]
[1758511286344,0.02178,114450.0,114440.0,1.38066358]
[1758511287038,0.02778,114450.0,114440.0,1.38066358]
[1758511291748,0.1150908,114450.0,114440.0,1.38066358]
[1758511292946,0.1150908,114450.0,114440.0,0.9455117]
[1758511293147,0.02778,114450.0,114440.0,1.38066358]
[1758511294850,0.02778,114450.0,114440.0,0.57710358]
[1758511295054,0.34578694,114450.0,114440.0,0.54362498]
[1758511295257,0.34578694,114450.0,114440.0,1.34702498]
[1758511295658,0.34578694,114450.0,114440.0,0.54362498]
[1758511295960,0.34578694,114450.0,114440.0,1.12944904]
[1758511296554,0.128211,114450.0,114440.0,1.12959002]
[1758511297051,0.273211,114450.0,114440.0,1.12959002]
[1758511297248,0.128211,114450.0,114440.0,0.1084731]
[1758511297453,0.1222186,114440.0,114430.0,0.02116]
[1758511297655,0.1222262,114430.0,114420.0,0.32620692]
[1758511297959,0.1222262,114430.0,114420.0,0.65632]
[1758511298259,0.1222262,114430.0,114420.0,0.7440538]
[1758511298457,0.19092926,114430.0,114420.0,0.7440538]
[1758511299155,0.18992926,114430.0,114420.0,0.7440538]
[1758511299657,0.19592926,114430.0,114420.0,0.7440538]
[1758511301661,0.66364618,114430.0,114420.0,0.02156]
[1758511301862,0.66364618,114430.0,114420.0,0.02116]
[1758511302056,0.66364618,114430.0,114420.0,0.02156]
[1758511302457,0.80864618,114430.0,114420.0,0.0004]
[1758511302856,0.0873414,114410.0,114400.0,1.02021834]
[1758511303060,0.1091214,114410.0,114400.0,1.02021834]
[1758511304056,0.11785096,114410.0,114400.0,1.02021834]
[1758511304357,0.11785096,114410.0,114400.0,1.14583992]
[1758511304562,0.13097096,114410.0,114400.0,1.14583992]
[1758511305669,0.13097096,114410.0,114400.0,0.02816]
[1758511306061,0.14899945,114410.0,114400.0,0.02856]
[1758511306953,0.14899945,114410.0,114400.0,0.02816]
[1758511307165,0.14899945,114410.0,114400.0,0.02456]
[1758511307365,0.15199945,114410.0,114400.0,0.02156]
[1758511309267,0.13397096,114410.0,114400.0,0.02156]
[1758511309764,0.13397096,114410.0,114400.0,0.23927692]
[1758511312470,0.13397096,114410.0,114400.0,0.02156]
[1758511312972,0.13397096,114410.0,114400.0,0.02116]
[1758511313166,0.13397096,114410.0,114400.0,0.02156]
[1758511313361,0.13397096,114410.0,114400.0,0.23927692]
[1758511316473,0.13397096,114410.0,114400.0,0.33923602]
[1758511317373,0.12085096,114410.0,114400.0,0.33923602]
[1758511317567,0.09907096,114410.0,114400.0,0.33923602]
[1758511317771,0.12092096,114410.0,114400.0,0.33923602]
[1758511320773,0.12092096,114410.0,114400.0,1.14235602]
[1758511321975,0.12092096,114410.0,114400.0,0.33923602]
[1758511322174,0.12092096,114410.0,114400.0,1.14231602]
[1758511323676,0.03357956,114410.0,114400.0,1.14231602]
[1758511323877,0.01212956,114410.0,114400.0,1.39231602]
[1758511324377,0.003,114410.0,114400.0,1.61003294]
[1758511324571,0.003,114410.0,114400.0,1.39231602]
[1758511324772,0.0034,114410.0,114400.0,1.39231602]
[1758511324972,0.0034,114410.0,114400.0,1.41228916]
[1758511325875,0.003,114410.0,114400.0,1.63000608]
[1758511326075,0.0034,114410.0,114400.0,0.82692608]
[1758511326274,0.0034,114410.0,114400.0,0.60920916]
[1758511326474,0.003,114410.0,114400.0,1.41220916]
[1758511326784,0.003,114410.0,114400.0,1.41180916]
[1758511327075,0.003,114410.0,114400.0,0.60880916]
[1758511327379,0.005,114410.0,114400.0,1.41620899]
[1758511328276,0.005,114410.0,114400.0,1.41616899]
[1758511331578,0.005,114410.0,114400.0,0.61320899]
[1758511331876,0.005,114410.0,114400.0,1.41604899]
[1758511333583,0.005,114410.0,114400.0,0.61320899]
[1758511333785,0.005,114410.0,114400.0,1.41600899]
[1758511334676,0.005,114410.0,114400.0,0.61320899]
[1758511334878,0.005,114410.0,114400.0,1.41596899]
[1758511335690,0.005,114410.0,114400.0,1.63368591]
[1758511335889,0.06950306,114430.0,114420.0,0.1225339]
[1758511336184,0.06950306,114430.0,114420.0,1.36068774]
[1758511336395,0.06870306,114430.0,114420.0,1.36068774]
[1758511336584,0.01880209,114440.0,114430.0,0.1001462]
[1758511336778,0.01880209,114440.0,114430.0,0.34024312]
[1758511338089,0.02159,114450.0,114440.0,0.1225119]
[1758511338287,0.02159,114450.0,114440.0,0.34022882]
[1758511339880,0.04159,114450.0,114440.0,0.34022882]
[1758511341676,0.33176984,114460.0,114450.0,0.122511]
[1758511341881,0.37574953,114460.0,114450.0,0.122511]
[1758511342388,0.37574953,114460.0,114450.0,0.109691]
[1758511342984,0.31544273,114460.0,114450.0,0.123511]
[1758511343294,0.40254897,114460.0,114450.0,0.123511]
[1758511344285,0.29275598,114460.0,114450.0,0.123511]
[1758511344484,0.09752924,114460.0,114450.0,0.34122792]
[1758511344885,0.07503906,114460.0,114450.0,0.34122792]
[1758511345089,0.07543906,114460.0,114450.0,0.34122792]
[1758511347980,0.0979292,114460.0,114450.0,0.34122792]
[1758511349193,0.1852325,114460.0,114450.0,0.34122792]
[1758511349491,0.0763392,114460.0,114450.0,0.34122792]
[1758511350293,0.0763392,114460.0,114450.0,0.123511]
[1758511350488,0.0763392,114460.0,114450.0,0.34122792]
[1758511350791,0.05384906,114460.0,114450.0,0.55894484]
[1758511350993,0.05344906,114460.0,114450.0,0.55894484]
[1758511351188,0.05384906,114460.0,114450.0,0.55894484]
[1758511351584,0.05384906,114460.0,114450.0,1.14346792]
[1758511351787,0.05384906,114460.0,114450.0,0.34122792]
[1758511351987,0.05384906,114460.0,114450.0,1.01434792]
[1758511352392,0.05384906,114460.0,114450.0,0.34122792]
[1758511352696,0.05384906,114460.0,114450.0,1.01430792]
[1758511352887,0.05384906,114460.0,114450.0,1.26430792]
[1758511353389,0.05384906,114460.0,114450.0,0.59122792]
[1758511353701,0.05384906,114460.0,114450.0,1.61114484]
[1758511354093,0.05344906,114460.0,114450.0,1.61114484]
[1758511354286,0.05384906,114460.0,114450.0,1.61114484]
[1758511354696,0.05384906,114460.0,114450.0,0.80894484]
[1758511354894,0.05384906,114460.0,114450.0,1.61110484]
[1758511355192,0.05384906,114460.0,114450.0,1.61106484]
[1758511355393,0.05384906,114460.0,114450.0,1.39334792]
[1758511356196,0.05384906,114460.0,114450.0,0.59122792]
[1758511356593,0.05384906,114460.0,114450.0,1.39330792]
[1758511358197,0.05384906,114460.0,114450.0,1.39326792]
[1758511358699,0.05384906,114460.0,114450.0,1.39318908]
[1758511359498,0.05384906,114460.0,114450.0,1.14318908]
[1758511359900,0.05384906,114460.0,114450.0,1.14314908]
[1758511363002,0.05384906,114460.0,114450.0,0.34114908]
[1758511363298,0.05384906,114460.0,114450.0,1.14306908]
[1758511364203,0.07634875,114460.0,114450.0,1.14306908]
[1758511364800,0.07634875,114460.0,114450.0,0.34114908]
[1758511365005,0.09832875,114460.0,114450.0,1.14302908]
[1758511368106,0.07582906,114460.0,114450.0,1.14302908]
[1758511368501,0.07582906,114460.0,114450.0,0.34114908]
[1758511368905,0.07582906,114460.0,114450.0,1.14286908]
[1758511369494,0.07582906,114460.0,114450.0,1.14282908]
[1758511372105,0.05384906,114460.0,114450.0,1.14282908]
[1758511372401,0.05384906,114460.0,114450.0,1.36046716]
[1758511374316,0.05384906,114460.0,114450.0,1.14282908]
[1758511380130,0.05384906,114460.0,114450.0,1.36046716]
[1758511381626,0.05384906,114460.0,114450.0,0.925191]
[1758511381828,0.05384906,114460.0,114450.0,1.36046716]
[1758511388215,0.05384906,114460.0,114450.0,1.43893301]
[1758511388615,0.05384906,114460.0,114450.0,0.63725301]
[1758511388828,0.05384906,114460.0,114450.0,1.43841301]
[1758511389529,0.05384906,114460.0,114450.0,1.35994716]
[1758511392132,0.05384906,114460.0,114450.0,0.55878716]
[1758511392530,0.05384906,114460.0,114450.0,1.35986716]
[1758511397038,0.05384906,114460.0,114450.0,0.55878716]
[1758511397226,0.05384906,114460.0,114450.0,1.35974716]
[1758511399221,0.05384906,114460.0,114450.0,1.43821301]
[1758511400426,0.04584906,114460.0,114450.0,1.43721301]
[1758511400627,0.05084906,114460.0,114450.0,1.43721301]
[1758511401736,0.03184906,114460.0,114450.0,1.43721301]
[1758511401928,0.03984906,114460.0,114450.0,1.43721301]
[1758511403136,0.03484906,114460.0,114450.0,1.43721301]
[1758511403436,0.03584906,114460.0,114450.0,1.43721301]
[1758511405142,0.03584906,114460.0,114450.0,1.45750065]
[1758511405328,0.06932777,114470.0,114460.0,0.1224833]
[1758511405534,0.06842777,114470.0,114460.0,0.85386339]
[1758511405735,0.0008,114470.0,114460.0,0.85386339]
[1758511406044,0.0001,114480.0,114470.0,0.1224757]
[1758511406341,0.02113,114490.0,114480.0,0.122468]
[1758511406534,0.02103,114490.0,114480.0,0.55774416]
[1758511406936,0.02998671,114490.0,114480.0,0.55774416]
[1758511408041,0.05255451,114490.0,114480.0,0.55774416]
[1758511408632,0.30255451,114490.0,114480.0,0.55774416]
[1758511408942,0.05555451,114490.0,114480.0,0.55774416]
[1758511409432,0.03452451,114490.0,114480.0,0.55774416]
[1758511409635,0.05855451,114490.0,114480.0,0.55774416]
[1758511410034,0.05855451,114490.0,114480.0,1.35838416]
[1758511410342,0.05855451,114490.0,114480.0,0.55774416]
[1758511410548,0.34704521,114490.0,114480.0,1.35834416]
[1758511410849,0.34704521,114490.0,114480.0,1.14070608]
[1758511411543,0.12940713,114490.0,114480.0,0.34010608]
[1758511411741,0.34704521,114490.0,114480.0,0.34010608]
[1758511412942,0.12940713,114490.0,114480.0,0.34010608]
[1758511413148,0.34704521,114490.0,114480.0,0.34010608]
[1758511413450,0.34704521,114490.0,114480.0,0.55774416]
[1758511413750,0.34704521,114490.0,114480.0,0.34010608]
[1758511414145,0.43432571,114490.0,114480.0,0.34010608]
[1758511416654,0.21668763,114490.0,114480.0,0.34010608]
[1758511416841,0.43432571,114490.0,114480.0,0.34010608]
[1758511417549,0.43432571,114490.0,114480.0,0.122468]
[1758511417750,0.43432571,114490.0,114480.0,0.34010608]
[1758511418050,0.41175791,114490.0,114480.0,0.34010608]
[1758511418645,0.19411983,114490.0,114480.0,0.38610996]
[1758511419455,0.19411983,114490.0,114480.0,0.29882196]
[1758511419651,0.19411983,114490.0,114480.0,0.38611006]
[1758511420155,0.19411983,114490.0,114480.0,0.29882196]
[1758511420546,0.19411983,114490.0,114480.0,0.38610986]
[1758511422551,0.19411983,114490.0,114480.0,0.29882196]
[1758511423553,0.19411983,114490.0,114480.0,0.38610986]
[1758511426356,0.19411983,114490.0,114480.0,0.29882196]
[1758511427449,0.21668622,114490.0,114480.0,0.38610986]
[1758511427958,0.19411983,114490.0,114480.0,0.38610986]
[1758511431960,0.17308983,114490.0,114480.0,0.38610986]
[1758511432368,0.21670109,114490.0,114480.0,0.38610986]
[1758511432754,0.21670109,114490.0,114480.0,0.1685479]
[1758511432960,0.21670109,114490.0,114480.0,0.38610986]
[1758511435360,0.21670109,114490.0,114480.0,0.1685479]
[1758511435561,0.21670109,114490.0,114480.0,0.38610986]
[1758511438460,0.36170109,114490.0,114480.0,0.38610986]
[1758511438665,0.21670109,114490.0,114480.0,0.38610986]
[1758511446169,0.21670109,114490.0,114480.0,0.29882196]
[1758511446369,0.21670109,114490.0,114480.0,0.08126]
[1758511446571,0.21670109,114490.0,114480.0,0.29882196]
[1758511448172,0.21670109,114490.0,114480.0,0.38610996]
[1758511452767,0.21670109,114490.0,114480.0,0.168548]
[1758511452973,0.21670109,114490.0,114480.0,0.38610996]
[1758511455466,0.21670109,114490.0,114480.0,0.168548]
[1758511455666,0.21670109,114490.0,114480.0,0.38610996]
[1758511456470,0.21670109,114490.0,114480.0,0.168548]
[1758511456768,0.21670109,114490.0,114480.0,0.29882196]
[1758511458177,0.21670109,114490.0,114480.0,0.38610996]
[1758511461272,0.10839059,114490.0,114480.0,0.38610996]
[1758511462280,0.19567089,114490.0,114480.0,0.38610996]
[1758511463383,0.10839059,114490.0,114480.0,0.87392895]
[1758511463582,0.08580933,114490.0,114480.0,0.87392895]
[1758511463784,0.08620933,114490.0,114480.0,0.87392895]
[1758511464479,0.08580933,114490.0,114480.0,0.87392895]
[1758511464779,0.08620933,114490.0,114480.0,0.87392895]
[1758511465380,0.08580933,114490.0,114480.0,0.87392895]
[1758511465776,0.08620933,114490.0,114480.0,0.87392895]
[1758511467782,0.08580933,114490.0,114480.0,0.87392895]
[1758511468175,0.08620933,114490.0,114480.0,0.87392895]
[1758511468683,0.07725262,114490.0,114480.0,0.87392895]
[1758511469075,0.07725262,114490.0,114480.0,0.9523948]
[1758511470076,0.07725262,114490.0,114480.0,1.7515948]
[1758511470277,0.07625262,114490.0,114480.0,1.67312895]
[1758511471386,0.07625262,114490.0,114480.0,0.87392895]
[1758511471685,0.07625262,114490.0,114480.0,1.67304895]
[1758511472077,0.07625262,114490.0,114480.0,1.67306652]
[1758511472578,0.07625262,114490.0,114480.0,0.87394652]
[1758511473383,0.07625262,114490.0,114480.0,1.75149237]
[1758511474382,0.07625262,114490.0,114480.0,1.67302652]
[1758511474586,0.07625262,114490.0,114480.0,1.65275192]
[1758511474788,0.07625262,114490.0,114480.0,1.67348574]
[1758511475483,0.07625262,114490.0,114480.0,1.67295862]
[1758511475880,0.07625262,114490.0,114480.0,1.67291862]
[1758511476081,0.07625262,114490.0,114480.0,0.87387862]
[1758511476688,0.07625262,114490.0,114480.0,1.67287862]
[1758511478191,0.07625262,114490.0,114480.0,1.65267192]
[1758511478390,0.07625262,114490.0,114480.0,1.67331182]
[1758511478592,0.07625262,114490.0,114480.0,1.89060168]
[1758511479384,0.07625262,114490.0,114480.0,1.64060168]
[1758511480987,0.07625262,114490.0,114480.0,0.84160168]
[1758511481396,0.07625262,114490.0,114480.0,1.64044168]
[1758511483489,0.07625262,114490.0,114480.0,0.84160168]
[1758511483688,0.07625262,114490.0,114480.0,1.64040168]
[1758511483894,0.07625262,114490.0,114480.0,0.84160168]
[1758511484088,0.07625262,114490.0,114480.0,1.64040168]
[1758511486094,0.0054,114490.0,114480.0,1.64040168]
[1758511486389,0.0054,114490.0,114480.0,0.62413042]
[1758511486581,0.02713,114490.0,114480.0,1.42285042]
[1758511486983,0.0054,114490.0,114480.0,1.42285042]
[1758511487396,0.0054,114490.0,114480.0,0.62413042]
[1758511487597,0.0054,114490.0,114480.0,1.42285042]
[1758511490200,0.0054,114490.0,114480.0,0.62413042]
[1758511490395,0.0054,114490.0,114480.0,1.42281042]
[1758511492093,0.0054,114490.0,114480.0,1.42277042]
[1758511492094,0.27713,114490.0,114480.0,1.42277042]
[1758511493800,0.2554,114490.0,114480.0,1.42277042]
[1758511495197,0.2554,114490.0,114480.0,1.50123627]
[1758511496605,0.2554,114490.0,114480.0,1.42277042]
[1758511497809,0.2554,114490.0,114480.0,1.50123627]
[1758511498205,0.2554,114490.0,114480.0,1.42277042]
[1758511501410,0.2554,114490.0,114480.0,1.42257042]
[1758511502100,0.2554,114490.0,114480.0,0.62413042]
[1758511502301,0.2554,114490.0,114480.0,1.42249042]
[1758511504213,0.2554,114490.0,114480.0,0.62413042]
[1758511504413,0.2554,114490.0,114480.0,1.42249042]
[1758511509227,0.2554,114490.0,114480.0,1.42183213]
[1758511509526,0.27752,114490.0,114480.0,0.62347213]
[1758511509820,0.27752,114490.0,114480.0,1.42171213]
[1758511510220,0.27752,114490.0,114480.0,1.48676213]
[1758511511021,0.27752,114490.0,114480.0,1.48672213]
[1758511512825,0.27752,114490.0,114480.0,1.48668856]
[1758511514725,0.27752,114490.0,114480.0,1.56515441]
[1758511515716,0.27752,114490.0,114480.0,1.48668856]
[1758511517530,0.27752,114490.0,114480.0,1.48652856]
[1758511518130,0.27752,114490.0,114480.0,1.46658052]
[1758511518830,0.27752,114490.0,114480.0,1.48701554]
[1758511520525,0.27752,114490.0,114480.0,1.56548139]
[1758511521734,0.27752,114490.0,114480.0,1.54504637]
[1758511522233,0.27752,114490.0,114480.0,1.56526885]
[1758511527033,0.27752,114490.0,114480.0,1.56525296]
[1758511529037,0.27752,114490.0,114480.0,1.48678711]
[1758511530642,0.27752,114490.0,114480.0,1.4870948]
[1758511533631,0.27752,114490.0,114480.0,1.56556065]
[1758511539342,0.02752,114490.0,114480.0,1.56556065]
[1758511540644,0.02752,114490.0,114480.0,1.34815073]
[1758511541546,0.02752,114490.0,114480.0,1.26968488]
[1758511543248,0.0451216,114490.0,114480.0,0.25411228]
[1758511543633,0.5126542,114490.0,114480.0,1.05155228]
[1758511544139,0.2951216,114490.0,114480.0,1.05155228]
[1758511544339,0.5126542,114490.0,114480.0,1.05155228]
[1758511546351,0.2951216,114490.0,114480.0,1.05155228]
[1758511547349,0.31763106,114490.0,114480.0,1.05155228]
[1758511549450,0.31763106,114490.0,114480.0,0.25411228]
[1758511550254,0.2951216,114490.0,114480.0,0.25411228]
[1758511553455,0.3824035,114490.0,114480.0,0.25411228]
[1758511556155,0.3824035,114490.0,114480.0,0.47164488]
[1758511558553,0.3824035,114490.0,114480.0,0.25411228]
[1758511560452,0.5081661,114490.0,114480.0,0.15362428]
[1758511560652,0.53066495,114490.0,114480.0,0.15362428]
[1758511561052,0.2774035,114490.0,114480.0,0.38498688]
[1758511561655,0.2774035,114490.0,114480.0,0.47227638]
[1758511562555,0.2774035,114490.0,114480.0,0.16745428]
[1758511562755,0.7581661,114490.0,114480.0,0.13311]
[1758511562962,0.78066323,114490.0,114480.0,0.13311]
[1758511563863,0.78066323,114490.0,114480.0,0.11113]
[1758511565963,0.1201871,114470.0,114460.0,0.02255]
[1758511566163,1.1347197,114470.0,114460.0,0.02255]
[1758511566463,0.1086847,114460.0,114450.0,0.0553318]
[1758511566964,0.1086847,114460.0,114450.0,0.1426442]
[1758511568154,0.17352219,114460.0,114450.0,0.1426442]
[1758511568756,0.17352219,114460.0,114450.0,0.1506442]
[1758511569157,0.17352219,114460.0,114450.0,0.0653318]
[1758511569560,0.39105479,114460.0,114450.0,0.0653318]
[1758511570158,0.39205479,114460.0,114450.0,0.0573318]
[1758511570762,0.17552219,114460.0,114450.0,0.1426444]
[1758511575365,0.17552219,114460.0,114450.0,0.03537]
[1758511575570,0.1098226,114450.0,114440.0,0.0352]
[1758511575767,0.3273552,114450.0,114440.0,0.0352]
[1758511576867,0.3273552,114450.0,114440.0,0.0372]
[1758511577468,0.3405852,114450.0,114440.0,0.02337]
[1758511577766,0.02251,114420.0,114410.0,0.3397557]
[1758511578069,0.1098454,114420.0,114410.0,0.3393557]
[1758511578365,0.1098454,114420.0,114410.0,0.3397557]
[1758511580068,0.02251,114420.0,114410.0,0.3397557]
[1758511580567,0.02251,114420.0,114410.0,0.3507557]
[1758511580769,0.03143549,114420.0,114410.0,0.3507557]
[1758511580965,0.09978823,114420.0,114410.0,0.3507557]
[1758511581268,0.09978823,114420.0,114410.0,0.3407557]
[1758511592573,0.56306623,114420.0,114410.0,0.02277]
[1758511592879,0.81306623,114420.0,114410.0,0.1097131]
[1758511593178,0.81306623,114420.0,114410.0,0.1101131]
[1758511594273,0.59553363,114420.0,114410.0,0.1101131]
[1758511594669,0.50819823,114420.0,114410.0,0.1101131]
[1758511595969,0.59553363,114420.0,114410.0,0.1101131]
[1758511596173,0.50819823,114420.0,114410.0,0.1101131]
[1758511596680,0.59553363,114420.0,114410.0,0.1101131]
[1758511598786,0.50819823,114420.0,114410.0,0.1101131]
[1758511599284,0.25819823,114420.0,114410.0,0.1101131]
[1758511600180,0.25819823,114420.0,114410.0,0.3403757]
[1758511600384,0.24478823,114420.0,114410.0,0.3403757]
[1758511600584,0.24478823,114420.0,114410.0,0.34064795]
[1758511601378,0.07727823,114420.0,114410.0,0.8084528]
[1758511601579,0.27255141,114450.0,114440.0,0.1099202]
[1758511601782,0.29499198,114450.0,114440.0,0.32772505]
[1758511602086,0.38190448,114450.0,114440.0,0.32772505]
[1758511602280,0.30319704,114450.0,114440.0,0.32772505]
[1758511602478,0.39050954,114450.0,114440.0,0.32772505]
[1758511603087,0.39450954,114450.0,114440.0,0.32772505]
[1758511603985,0.40350954,114450.0,114440.0,0.1099202]
[1758511604193,0.40350954,114450.0,114440.0,0.32772505]
[1758511604377,0.08516219,114450.0,114440.0,0.5582599]
[1758511606083,0.06272162,114450.0,114440.0,0.5582599]
[1758511606881,0.06272162,114450.0,114440.0,0.34045505]
[1758511607794,0.06272162,114450.0,114440.0,0.5582599]
[1758511607986,0.16344412,114450.0,114440.0,0.34045505]
[1758511608190,0.4036,114450.0,114440.0,0.34045505]
[1758511608691,0.4036,114450.0,114440.0,0.1226502]
[1758511608894,0.4036,114450.0,114440.0,0.34045505]
[1758511609393,0.3162875,114450.0,114440.0,0.34045505]
[1758511614389,0.29393647,114450.0,114440.0,0.34045505]
[1758511615087,0.28052647,114450.0,114440.0,0.5582599]
[1758511615594,0.15003412,114450.0,114440.0,0.5582599]
[1758511615792,0.06172162,114450.0,114440.0,0.5582599]
[1758511616093,0.14903422,114450.0,114440.0,0.5582599]
[1758511616784,0.14603422,114450.0,114440.0,0.5582599]
[1758511619290,0.14603422,114450.0,114440.0,0.1226502]
[1758511619593,0.37781907,114450.0,114440.0,0.5582599]
[1758511623095,0.37781907,114450.0,114440.0,0.34045505]
[1758511623302,0.37781907,114450.0,114440.0,0.5582599]
[1758511623594,0.37781907,114450.0,114440.0,0.34045505]
[1758511624493,0.37781907,114450.0,114440.0,0.5582599]
[1758511625084,0.36383907,114450.0,114440.0,0.5582599]
[1758511627399,0.14603422,114450.0,114440.0,0.5582599]
[1758511627693,0.36383907,114450.0,114440.0,0.5582599]
[1758511629800,0.14603422,114450.0,114440.0,0.5582599]
[1758511630094,0.36383907,114450.0,114440.0,0.5582599]
[1758511630288,0.05872162,114450.0,114440.0,0.5582599]
[1758511630489,0.03535162,114450.0,114440.0,0.8082599]
[1758511630693,0.01760506,114450.0,114440.0,0.8082599]
[1758511631396,0.01800506,114450.0,114440.0,0.8082599]
[1758511632000,0.01100506,114450.0,114440.0,0.8082599]
[1758511632298,0.01200506,114450.0,114440.0,0.8082599]
[1758511632492,0.01160506,114450.0,114440.0,0.8082599]
[1758511632799,0.01200506,114450.0,114440.0,0.8082599]
[1758511633001,0.01200506,114450.0,114440.0,1.02606475]
[1758511633204,0.01200506,114450.0,114440.0,0.8082599]
[1758511633392,0.01160506,114450.0,114440.0,0.88672575]
[1758511633592,0.01200506,114450.0,114440.0,0.88672575]
[1758511634094,0.01200506,114450.0,114440.0,1.1045306]
[1758511634291,0.01100506,114450.0,114440.0,1.1045306]
[1758511635196,0.0776401,114460.0,114450.0,0.1229929]
[1758511635401,0.0001,114470.0,114460.0,0.1229852]
[1758511635600,0.04214216,114480.0,114470.0,0.1229776]
[1758511635802,0.04204216,114480.0,114470.0,0.34078245]
[1758511636601,0.12933216,114480.0,114470.0,0.34078245]
[1758511636796,0.42960348,114480.0,114470.0,0.24029485]
[1758511637102,0.43860348,114480.0,114470.0,0.24029485]
[1758511637502,0.42467132,114480.0,114470.0,0.32759245]
[1758511637803,0.34603545,114480.0,114470.0,0.32759245]
[1758511638003,0.33703545,114480.0,114470.0,0.32759245]
[1758511638205,0.36132424,114480.0,114470.0,0.32759245]
[1758511638401,0.36432424,114480.0,114470.0,0.32759245]
[1758511638603,0.14651939,114480.0,114470.0,0.32759245]
[1758511638906,0.36432424,114480.0,114470.0,0.32759245]
[1758511639199,0.45161424,114480.0,114470.0,0.32759245]
[1758511641192,0.36432424,114480.0,114470.0,0.32759245]
[1758511642102,0.45161424,114480.0,114470.0,0.32759245]
[1758511642302,0.45161424,114480.0,114470.0,0.1097876]
[1758511642502,0.45161424,114480.0,114470.0,0.32759245]
[1758511646810,0.66941909,114480.0,114470.0,0.02249]
[1758511647000,0.66941909,114480.0,114470.0,0.24029485]
[1758511647303,0.81441909,114480.0,114470.0,0.32759245]
[1758511647505,0.59661424,114480.0,114470.0,0.32759245]
[1758511647712,0.37880939,114480.0,114470.0,0.32759245]
[1758511648001,0.59661424,114480.0,114470.0,0.34148245]
[1758511648207,0.1111006,114480.0,114470.0,0.34148245]
[1758511648404,0.2102505,114480.0,114470.0,0.34148245]
[1758511648710,0.1979905,114480.0,114470.0,0.34148245]
[1758511652802,0.1107006,114480.0,114470.0,0.34148245]
[1758511653404,0.1979906,114480.0,114470.0,0.34148245]
[1758511656816,0.1107006,114480.0,114470.0,0.34148245]
[1758511658517,0.1107006,114480.0,114470.0,0.5592873]
[1758511658922,0.1103006,114480.0,114470.0,0.5592873]
[1758511659220,0.1107006,114480.0,114470.0,0.5592873]
[1758511662223,0.0873906,114480.0,114470.0,0.5592873]
[1758511662527,0.0873906,114480.0,114470.0,0.34122313]
[1758511665424,0.1089006,114480.0,114470.0,0.34122313]
[1758511667625,0.2539006,114480.0,114470.0,0.34122313]
[1758511667931,0.1089006,114480.0,114470.0,0.34122313]
[1758511677441,0.1089006,114480.0,114470.0,1.13686313]
[1758511677848,0.1089006,114480.0,114470.0,0.34122313]
[1758511678039,0.1089006,114480.0,114470.0,1.13682313]
[1758511679747,0.06913647,114480.0,114470.0,1.35436866]
[1758511679941,0.009,114480.0,114470.0,1.35436866]
[1758511680141,0.0094,114480.0,114470.0,1.35436866]
[1758511680340,0.009,114480.0,114470.0,1.35436866]
[1758511680537,0.009,114480.0,114470.0,0.55876866]
[1758511680841,0.0094,114480.0,114470.0,1.35432866]
[1758511681152,0.0094,114480.0,114470.0,1.13678313]
[1758511681346,0.0094,114480.0,114470.0,1.35432866]
[1758511683448,0.0094,114480.0,114470.0,0.55876866]
[1758511683647,0.07819187,114480.0,114470.0,1.35428866]
[1758511684150,0.07819187,114480.0,114470.0,0.55876866]
[1758511684350,0.07819187,114480.0,114470.0,1.35424866]
[1758511684649,0.08709745,114480.0,114470.0,1.35424866]
[1758511686646,0.08709745,114480.0,114470.0,0.55876866]
[1758511686842,0.08709745,114480.0,114470.0,1.35424866]
[1758511687044,0.08709745,114480.0,114470.0,1.35420866]